[Event "Titled Tuesday Blitz August 22 Early 2023"]
[White "Galchenko, Matvey"]
[Black "Korchmar, Vasiliy"]
[WhiteFideId "24175480"]
[BlackFideId "24131750"]
[WhiteElo "2843"]
[BlackElo "2684"]
[Result "1-0"]
[Round "9"]
[TimeControl "180+1"]
[Date "2023.08.22"]
[WhiteClock "0:00:05"]
[BlackClock "0:00:02"]
[Board "36"]

1. f4 {[%clk 0:02:58]}  d5 {[%clk 0:02:59]} 2. Nf3 {[%clk 0:02:58]}  g6 {[%clk 0:02:59]} 3. g3 {[%clk 0:02:58]}  Bg7 {[%clk 0:03:00]} 4. Bg2 {[%clk 0:02:58]}  Nf6 {[%clk 0:03:01]} 5. O-O {[%clk 0:02:58]}  O-O {[%clk 0:03:01]} 6. d3 {[%clk 0:02:59]}  c5 {[%clk 0:03:01]} 7. Nc3 {[%clk 0:02:59]}  Nc6 {[%clk 0:03:01]} 8. e4 {[%clk 0:02:59]}  dxe4 {[%clk 0:02:55]} 9. dxe4 {[%clk 0:02:59]}  e5 {[%clk 0:02:56]} 10. Qxd8 {[%clk 0:02:59]}  Rxd8 {[%clk 0:02:56]} 11. Nxe5 {[%clk 0:03:00]}  Nxe5 {[%clk 0:02:54]} 12. fxe5 {[%clk 0:03:00]}  Ng4 {[%clk 0:02:55]} 13. Bg5 {[%clk 0:02:58]}  Rf8 {[%clk 0:02:04]} 14. Be7 {[%clk 0:02:53]}  Re8 {[%clk 0:02:04]} 15. Bxc5 {[%clk 0:02:53]}  b6 {[%clk 0:01:42]} 16. Bd4 {[%clk 0:02:30]}  Ba6 {[%clk 0:01:43]} 17. Rfe1 {[%clk 0:02:22]}  Rac8 {[%clk 0:01:35]} 18. Rad1 {[%clk 0:02:18]}  Nxe5 {[%clk 0:01:30]} 19. Nd5 {[%clk 0:01:28]}  Bc4 {[%clk 0:00:21]} 20. Ne3 {[%clk 0:01:04]}  Ba6 {[%clk 0:00:15]} 21. b3 {[%clk 0:00:58]}  Nd3 {[%clk 0:00:14]} 22. Rxd3 {[%clk 0:00:51]}  Bxd3 {[%clk 0:00:13]} 23. Bxg7 {[%clk 0:00:52]}  Bxe4 {[%clk 0:00:11]} 24. Bxe4 {[%clk 0:00:26]}  Rxe4 {[%clk 0:00:08]} 25. Bb2 {[%clk 0:00:25]}  f5 {[%clk 0:00:08]} 26. Kf2 {[%clk 0:00:17]}  f4 {[%clk 0:00:08]} 27. gxf4 {[%clk 0:00:14]}  Rxf4+ {[%clk 0:00:09]} 28. Kg3 {[%clk 0:00:15]}  Re4 {[%clk 0:00:09]} 29. c4 {[%clk 0:00:16]}  Rce8 {[%clk 0:00:09]} 30. Kf3 {[%clk 0:00:16]}  Rh4 {[%clk 0:00:08]} 31. Kg3 {[%clk 0:00:06]}  Rhe4 {[%clk 0:00:08]} 32. Bc1 {[%clk 0:00:06]}  h5 {[%clk 0:00:05]} 33. Bd2 {[%clk 0:00:06]}  Kh7 {[%clk 0:00:06]} 34. Kf3 {[%clk 0:00:05]}  Rh4 {[%clk 0:00:05]} 35. Kg3 {[%clk 0:00:05]}  Rhe4 {[%clk 0:00:06]} 36. Ng2 {[%clk 0:00:05]}  Re2 {[%clk 0:00:03]} 37. Kf3 {[%clk 0:00:04]}  Rxe1 {[%clk 0:00:03]} 38. Bxe1 {[%clk 0:00:05]}  Rf8+ {[%clk 0:00:03]} 39. Ke2 {[%clk 0:00:05]}  Re8+ {[%clk 0:00:04]} 40. Ne3 {[%clk 0:00:05]}  g5 {[%clk 0:00:03]} 41. b4 {[%clk 0:00:05]}  Kg6 {[%clk 0:00:03]} 42. Bc3 {[%clk 0:00:05]}  g4 {[%clk 0:00:03]} 43. Bd4 {[%clk 0:00:05]}  Kg5 {[%clk 0:00:03]} 44. c5 {[%clk 0:00:05]}  bxc5 {[%clk 0:00:04]} 45. Bxc5 {[%clk 0:00:06]}  Re6 {[%clk 0:00:05]} 46. a4 {[%clk 0:00:05]}  a6 {[%clk 0:00:05]} 47. Kd3 {[%clk 0:00:05]}  h4 {[%clk 0:00:05]} 48. Ng2 {[%clk 0:00:03]}  Rf6 {[%clk 0:00:04]} 49. Be7 {[%clk 0:00:03]}  Kf5 {[%clk 0:00:04]} 50. Bxf6 {[%clk 0:00:03]}  Kxf6 {[%clk 0:00:05]} 51. Nxh4 {[%clk 0:00:04]}  Kg5 {[%clk 0:00:02]} 52. Ng2 {[%clk 0:00:05]} 1-0


[Site "https://www.chess.com"]

[Event "Titled Tuesday Blitz August 22 Early 2023"]
[White "Gubajdullin, Alexei"]
[Black "Piorun, Kacper"]
[WhiteFideId "4141202"]
[BlackFideId "1130420"]
[WhiteElo "2682"]
[BlackElo "2841"]
[Result "0-1"]
[Round "9"]
[TimeControl "180+1"]
[Date "2023.08.22"]
[WhiteClock "0:00:01"]
[BlackClock "0:00:11"]
[Board "37"]

1. d4 {[%clk 0:02:59]}  Nc6 {[%clk 0:02:55]} 2. Nf3 {[%clk 0:02:57]}  Nf6 {[%clk 0:02:53]} 3. Bf4 {[%clk 0:02:55]}  d6 {[%clk 0:02:50]} 4. e3 {[%clk 0:02:55]}  g6 {[%clk 0:02:50]} 5. h3 {[%clk 0:02:54]}  Bg7 {[%clk 0:02:50]} 6. Be2 {[%clk 0:02:54]}  O-O {[%clk 0:02:49]} 7. O-O {[%clk 0:02:55]}  Nd7 {[%clk 0:02:50]} 8. c4 {[%clk 0:02:55]}  e5 {[%clk 0:02:50]} 9. Bh2 {[%clk 0:02:55]}  Re8 {[%clk 0:02:46]} 10. Nc3 {[%clk 0:02:53]}  exd4 {[%clk 0:02:31]} 11. exd4 {[%clk 0:02:53]}  Ne7 {[%clk 0:02:32]} 12. Rc1 {[%clk 0:02:48]}  Nf8 {[%clk 0:02:29]} 13. c5 {[%clk 0:02:44]}  d5 {[%clk 0:02:12]} 14. b4 {[%clk 0:02:16]}  Ne6 {[%clk 0:02:09]} 15. Bb5 {[%clk 0:02:06]}  Bd7 {[%clk 0:01:59]} 16. Bxd7 {[%clk 0:02:04]}  Qxd7 {[%clk 0:02:00]} 17. Ne5 {[%clk 0:02:03]}  Qc8 {[%clk 0:01:53]} 18. b5 {[%clk 0:01:56]}  Nf5 {[%clk 0:01:32]} 19. Ne2 {[%clk 0:01:53]}  Nexd4 {[%clk 0:01:17]} 20. Nxd4 {[%clk 0:01:49]}  Bxe5 {[%clk 0:01:17]} 21. Bxe5 {[%clk 0:01:48]}  Rxe5 {[%clk 0:01:17]} 22. Nf3 {[%clk 0:01:48]}  Re6 {[%clk 0:01:14]} 23. Qxd5 {[%clk 0:01:47]}  c6 {[%clk 0:01:15]} 24. bxc6 {[%clk 0:01:13]}  Qxc6 {[%clk 0:01:12]} 25. Qxc6 {[%clk 0:01:11]}  Rxc6 {[%clk 0:01:13]} 26. Ne5 {[%clk 0:01:11]}  Re6 {[%clk 0:01:01]} 27. f4 {[%clk 0:00:39]}  Rc8 {[%clk 0:00:58]} 28. Rfd1 {[%clk 0:00:38]}  f6 {[%clk 0:00:49]} 29. Ng4 {[%clk 0:00:37]}  Kf7 {[%clk 0:00:48]} 30. Rd7+ {[%clk 0:00:32]}  Re7 {[%clk 0:00:49]} 31. Rxe7+ {[%clk 0:00:28]}  Kxe7 {[%clk 0:00:45]} 32. Rc4 {[%clk 0:00:26]}  h5 {[%clk 0:00:42]} 33. Nf2 {[%clk 0:00:26]}  h4 {[%clk 0:00:42]} 34. Nd3 {[%clk 0:00:25]}  Rd8 {[%clk 0:00:41]} 35. Rc3 {[%clk 0:00:25]}  Ng3 {[%clk 0:00:40]} 36. Rb3 {[%clk 0:00:24]}  Ke6 {[%clk 0:00:37]} 37. Kf2 {[%clk 0:00:23]}  Kf5 {[%clk 0:00:34]} 38. Ke3 {[%clk 0:00:22]}  Rd7 {[%clk 0:00:32]} 39. Rb5 {[%clk 0:00:19]}  Re7+ {[%clk 0:00:28]} 40. Kd4 {[%clk 0:00:17]}  Ne2+ {[%clk 0:00:28]} 41. Kc4 {[%clk 0:00:15]}  Re4+ {[%clk 0:00:28]} 42. Kb3 {[%clk 0:00:08]}  Nd4+ {[%clk 0:00:28]} 43. Kc4 {[%clk 0:00:08]}  Nxb5+ {[%clk 0:00:29]} 44. Kxb5 {[%clk 0:00:08]}  Rd4 {[%clk 0:00:29]} 45. Nb4 {[%clk 0:00:08]}  Rxf4 {[%clk 0:00:29]} 46. Nd5 {[%clk 0:00:08]}  Rf2 {[%clk 0:00:28]} 47. Ne7+ {[%clk 0:00:08]}  Kg5 {[%clk 0:00:28]} 48. a4 {[%clk 0:00:07]}  Rxg2 {[%clk 0:00:28]} 49. a5 {[%clk 0:00:06]}  Rb2+ {[%clk 0:00:29]} 50. Kc4 {[%clk 0:00:06]}  a6 {[%clk 0:00:28]} 51. Nc8 {[%clk 0:00:06]}  f5 {[%clk 0:00:29]} 52. Nd6 {[%clk 0:00:05]}  Kf4 {[%clk 0:00:26]} 53. Kc3 {[%clk 0:00:05]}  Rb1 {[%clk 0:00:18]} 54. Kc2 {[%clk 0:00:05]}  Re1 {[%clk 0:00:18]} 55. Nxb7 {[%clk 0:00:05]}  g5 {[%clk 0:00:18]} 56. c6 {[%clk 0:00:05]}  Re6 {[%clk 0:00:17]} 57. Nd8 {[%clk 0:00:03]}  Re7 {[%clk 0:00:14]} 58. Kd3 {[%clk 0:00:02]}  Ke5 {[%clk 0:00:12]} 59. Kc4 {[%clk 0:00:02]}  Kd6 {[%clk 0:00:12]} 60. Kd4 {[%clk 0:00:01]}  g4 {[%clk 0:00:11]} 61. hxg4 {[%clk 0:00:01]}  fxg4 {[%clk 0:00:12]} 62. Nb7+ {[%clk 0:00:02]}  Kxc6 {[%clk 0:00:12]} 63. Nc5 {[%clk 0:00:03]}  h3 {[%clk 0:00:12]} 64. Nd3 {[%clk 0:00:01]}  Rd7+ {[%clk 0:00:11]} 0-1


[Site "https://www.chess.com"]

[Event "Titled Tuesday Blitz August 22 Early 2023"]
[White "Yanchenko, Roman"]
[Black "Moral Garcia, Serafin"]
[WhiteFideId "4137329"]
[BlackFideId "2201925"]
[WhiteElo "2819"]
[BlackElo "2564"]
[Result "1-0"]
[Round "9"]
[TimeControl "180+1"]
[Date "2023.08.22"]
[WhiteClock "0:02:27"]
[BlackClock "0:01:58"]
[Board "39"]

1. d4 {[%clk 0:03:00]}  Nf6 {[%clk 0:02:59]} 2. Nf3 {[%clk 0:03:01]}  g6 {[%clk 0:02:58]} 3. c4 {[%clk 0:03:01]}  Bg7 {[%clk 0:02:58]} 4. Nc3 {[%clk 0:03:02]}  d5 {[%clk 0:02:58]} 5. Bf4 {[%clk 0:03:02]}  O-O {[%clk 0:02:56]} 6. c5 {[%clk 0:03:02]}  Ne4 {[%clk 0:02:52]} 7. e3 {[%clk 0:03:01]}  Nxc3 {[%clk 0:02:48]} 8. bxc3 {[%clk 0:03:01]}  b6 {[%clk 0:02:48]} 9. cxb6 {[%clk 0:03:01]}  axb6 {[%clk 0:02:48]} 10. Be2 {[%clk 0:02:56]}  c5 {[%clk 0:02:44]} 11. O-O {[%clk 0:02:54]}  Nc6 {[%clk 0:02:41]} 12. Qb3 {[%clk 0:02:38]}  Na5 {[%clk 0:02:18]} 13. Qb2 {[%clk 0:02:38]}  Ba6 {[%clk 0:02:16]} 14. Bxa6 {[%clk 0:02:33]}  Rxa6 {[%clk 0:02:16]} 15. Qb5 {[%clk 0:02:33]}  Qc8 {[%clk 0:02:05]} 16. Nd2 {[%clk 0:02:29]}  Qc6 {[%clk 0:01:58]} 17. Qxa6 {[%clk 0:02:27]} 1-0


[Site "https://www.chess.com"]

[Event "Titled Tuesday Blitz August 22 Early 2023"]
[White "Harsh Suresh"]
[Black "Badelka, Olga"]
[WhiteFideId "45018464"]
[BlackFideId "13509926"]
[WhiteElo "2869"]
[BlackElo "2585"]
[Result "1-0"]
[Round "9"]
[TimeControl "180+1"]
[Date "2023.08.22"]
[WhiteClock "0:00:34"]
[BlackClock "0:00:08"]
[Board "40"]

1. e4 {[%clk 0:03:00]}  e5 {[%clk 0:02:59]} 2. Nf3 {[%clk 0:03:00]}  Nc6 {[%clk 0:03:00]} 3. Bc4 {[%clk 0:02:57]}  Bc5 {[%clk 0:02:59]} 4. c3 {[%clk 0:02:56]}  Nf6 {[%clk 0:02:59]} 5. d4 {[%clk 0:02:57]}  exd4 {[%clk 0:02:59]} 6. b4 {[%clk 0:02:57]}  Bb6 {[%clk 0:02:45]} 7. e5 {[%clk 0:02:56]}  d5 {[%clk 0:02:42]} 8. exf6 {[%clk 0:02:56]}  dxc4 {[%clk 0:02:40]} 9. b5 {[%clk 0:02:56]}  Na5 {[%clk 0:02:33]} 10. Qe2+ {[%clk 0:02:54]}  Be6 {[%clk 0:02:32]} 11. fxg7 {[%clk 0:02:52]}  Rg8 {[%clk 0:02:33]} 12. Bg5 {[%clk 0:02:52]}  Qd5 {[%clk 0:02:27]} 13. Bf6 {[%clk 0:02:52]}  d3 {[%clk 0:02:23]} 14. Qe5 {[%clk 0:02:51]}  c6 {[%clk 0:02:03]} 15. Nbd2 {[%clk 0:02:48]}  Bd8 {[%clk 0:01:58]} 16. Ne4 {[%clk 0:02:46]}  cxb5 {[%clk 0:01:39]} 17. Qf4 {[%clk 0:02:13]}  Bc7 {[%clk 0:01:02]} 18. Be5 {[%clk 0:01:24]}  Bxe5 {[%clk 0:01:01]} 19. Nxe5 {[%clk 0:01:24]}  O-O-O {[%clk 0:00:58]} 20. Nf6 {[%clk 0:00:55]}  Qxg2 {[%clk 0:00:56]} 21. Nxg8 {[%clk 0:00:51]}  Qxh1+ {[%clk 0:00:14]} 22. Kd2 {[%clk 0:00:50]}  Qxa1 {[%clk 0:00:14]} 23. Ne7+ {[%clk 0:00:50]}  Kc7 {[%clk 0:00:14]} 24. Nxf7+ {[%clk 0:00:45]}  Kd7 {[%clk 0:00:08]} 25. Qd6+ {[%clk 0:00:44]}  Ke8 {[%clk 0:00:08]} 26. Qxd8+ {[%clk 0:00:43]}  Kxf7 {[%clk 0:00:08]} 27. g8=Q+ {[%clk 0:00:43]}  Kf6 {[%clk 0:00:09]} 28. Nd5+ {[%clk 0:00:35]}  Ke5 {[%clk 0:00:08]} 29. Qgg5+ {[%clk 0:00:34]}  Ke4 {[%clk 0:00:08]} 30. Qf4# {[%clk 0:00:34]} 1-0


[Site "https://www.chess.com"]

[Event "Titled Tuesday Blitz August 22 Early 2023"]
[White "NovoselovRoman"]
[Black "Krzyzanowski, Marcin"]
[BlackFideId "1132199"]
[WhiteElo "2589"]
[BlackElo "2778"]
[Result "0-1"]
[Round "9"]
[TimeControl "180+1"]
[Date "2023.08.22"]
[WhiteClock "0:00:00"]
[BlackClock "0:00:23"]
[Board "43"]

1. e4 {[%clk 0:03:00]}  c5 {[%clk 0:02:58]} 2. Nc3 {[%clk 0:03:01]}  d6 {[%clk 0:02:57]} 3. g3 {[%clk 0:02:58]}  g6 {[%clk 0:02:56]} 4. Bg2 {[%clk 0:02:59]}  Bg7 {[%clk 0:02:57]} 5. d3 {[%clk 0:03:00]}  Nc6 {[%clk 0:02:57]} 6. Be3 {[%clk 0:03:00]}  Rb8 {[%clk 0:02:57]} 7. a4 {[%clk 0:03:00]}  a6 {[%clk 0:02:52]} 8. Qd2 {[%clk 0:02:47]}  b5 {[%clk 0:02:50]} 9. axb5 {[%clk 0:02:48]}  axb5 {[%clk 0:02:50]} 10. Nf3 {[%clk 0:02:47]}  b4 {[%clk 0:02:40]} 11. Nd1 {[%clk 0:02:46]}  Nd4 {[%clk 0:02:37]} 12. h4 {[%clk 0:02:30]}  h5 {[%clk 0:02:12]} 13. Ng5 {[%clk 0:02:19]}  e6 {[%clk 0:02:02]} 14. Ra7 {[%clk 0:02:14]}  Ne7 {[%clk 0:02:01]} 15. c3 {[%clk 0:02:11]}  bxc3 {[%clk 0:02:01]} 16. bxc3 {[%clk 0:02:11]}  Ndc6 {[%clk 0:02:00]} 17. Ra2 {[%clk 0:02:08]}  Ne5 {[%clk 0:01:57]} 18. f3 {[%clk 0:01:54]}  O-O {[%clk 0:01:57]} 19. Nh3 {[%clk 0:01:53]}  c4 {[%clk 0:01:53]} 20. d4 {[%clk 0:01:44]}  Nd3+ {[%clk 0:01:52]} 21. Ke2 {[%clk 0:01:45]}  e5 {[%clk 0:01:40]} 22. Nhf2 {[%clk 0:01:36]}  exd4 {[%clk 0:01:27]} 23. Bxd4 {[%clk 0:01:32]}  Bxd4 {[%clk 0:01:03]} 24. cxd4 {[%clk 0:01:31]}  Nc6 {[%clk 0:01:04]} 25. Nxd3 {[%clk 0:00:42]}  cxd3+ {[%clk 0:00:46]} 26. Ke3 {[%clk 0:00:34]}  Rb3 {[%clk 0:00:40]} 27. d5 {[%clk 0:00:16]}  Qb6+ {[%clk 0:00:35]} 28. Kf4 {[%clk 0:00:17]}  Nd4 {[%clk 0:00:27]} 29. Bf1 {[%clk 0:00:07]}  f5 {[%clk 0:00:26]} 30. Kg5 {[%clk 0:00:00]}  Kg7 {[%clk 0:00:23]} 0-1


[Site "https://www.chess.com"]

[Event "Titled Tuesday Blitz August 22 Early 2023"]
[White "Eynullayev, Altay"]
[Black "Kosteniuk, Alexandra"]
[WhiteFideId "13413562"]
[BlackFideId "4128125"]
[WhiteElo "2573"]
[BlackElo "2748"]
[Result "1-0"]
[Round "9"]
[TimeControl "180+1"]
[Date "2023.08.22"]
[WhiteClock "0:00:07"]
[BlackClock "0:00:07"]
[Board "46"]

1. d4 {[%clk 0:03:00]}  f5 {[%clk 0:02:59]} 2. Nf3 {[%clk 0:02:57]}  Nf6 {[%clk 0:02:59]} 3. g3 {[%clk 0:02:57]}  g6 {[%clk 0:02:59]} 4. Bg2 {[%clk 0:02:58]}  Bg7 {[%clk 0:03:00]} 5. O-O {[%clk 0:02:58]}  O-O {[%clk 0:03:01]} 6. c4 {[%clk 0:02:58]}  d6 {[%clk 0:03:01]} 7. b3 {[%clk 0:02:58]}  a5 {[%clk 0:03:01]} 8. Bb2 {[%clk 0:02:56]}  a4 {[%clk 0:03:02]} 9. bxa4 {[%clk 0:02:52]}  Bd7 {[%clk 0:02:40]} 10. Nc3 {[%clk 0:02:50]}  Ne4 {[%clk 0:02:39]} 11. Nxe4 {[%clk 0:02:42]}  fxe4 {[%clk 0:02:39]} 12. Ng5 {[%clk 0:02:39]}  e5 {[%clk 0:02:09]} 13. Nxe4 {[%clk 0:02:36]}  Bxa4 {[%clk 0:02:09]} 14. Qd2 {[%clk 0:02:27]}  Nc6 {[%clk 0:02:09]} 15. d5 {[%clk 0:02:22]}  Ne7 {[%clk 0:02:05]} 16. c5 {[%clk 0:01:58]}  Nf5 {[%clk 0:02:01]} 17. e3 {[%clk 0:01:55]}  b6 {[%clk 0:01:42]} 18. cxb6 {[%clk 0:01:49]}  cxb6 {[%clk 0:01:39]} 19. Rfc1 {[%clk 0:01:42]}  h6 {[%clk 0:01:20]} 20. Qb4 {[%clk 0:01:42]}  Be8 {[%clk 0:01:14]} 21. a4 {[%clk 0:01:40]}  h5 {[%clk 0:00:59]} 22. h4 {[%clk 0:00:50]}  Rf7 {[%clk 0:00:59]} 23. Ng5 {[%clk 0:00:48]}  Rfa7 {[%clk 0:00:59]} 24. Ne6 {[%clk 0:00:44]}  Qe7 {[%clk 0:00:59]} 25. Qb3 {[%clk 0:00:38]}  Bxa4 {[%clk 0:00:51]} 26. Qb4 {[%clk 0:00:33]}  Be8 {[%clk 0:00:37]} 27. Rxa7 {[%clk 0:00:30]}  Rxa7 {[%clk 0:00:38]} 28. e4 {[%clk 0:00:24]}  Nh6 {[%clk 0:00:36]} 29. Rc8 {[%clk 0:00:17]}  Bf6 {[%clk 0:00:34]} 30. Bh3 {[%clk 0:00:13]}  Kh7 {[%clk 0:00:26]} 31. Ba3 {[%clk 0:00:12]}  Ra4 {[%clk 0:00:21]} 32. Qxd6 {[%clk 0:00:11]}  Qf7 {[%clk 0:00:11]} 33. Nf8+ {[%clk 0:00:08]}  Kg8 {[%clk 0:00:10]} 34. Be6 {[%clk 0:00:08]}  Rxe4 {[%clk 0:00:08]} 35. Rxe8 {[%clk 0:00:07]}  Re1+ {[%clk 0:00:07]} 36. Kg2 {[%clk 0:00:07]}  Kg7 {[%clk 0:00:07]} 37. Bxf7 {[%clk 0:00:08]}  Nxf7 {[%clk 0:00:08]} 38. Ne6+ {[%clk 0:00:07]}  Kh7 {[%clk 0:00:07]} 39. Qd7 {[%clk 0:00:07]} 1-0


[Site "https://www.chess.com"]

[Event "Titled Tuesday Blitz August 22 Early 2023"]
[White "Wagner, Dennis"]
[Black "Ganiev, Roman"]
[WhiteFideId "24650684"]
[BlackFideId "4131452"]
[WhiteElo "2746"]
[BlackElo "2573"]
[Result "1-0"]
[Round "9"]
[TimeControl "180+1"]
[Date "2023.08.22"]
[WhiteClock "0:00:11"]
[BlackClock "0:00:01"]
[Board "47"]

1. d4 {[%clk 0:03:00]}  Nf6 {[%clk 0:02:59]} 2. Nf3 {[%clk 0:03:01]}  e6 {[%clk 0:02:57]} 3. c4 {[%clk 0:03:01]}  b6 {[%clk 0:02:56]} 4. a3 {[%clk 0:02:59]}  Bb7 {[%clk 0:02:56]} 5. Nc3 {[%clk 0:03:00]}  d5 {[%clk 0:02:57]} 6. cxd5 {[%clk 0:03:00]}  Nxd5 {[%clk 0:02:57]} 7. e3 {[%clk 0:03:01]}  Be7 {[%clk 0:02:57]} 8. Bb5+ {[%clk 0:03:01]}  c6 {[%clk 0:02:53]} 9. Bd3 {[%clk 0:03:01]}  c5 {[%clk 0:02:54]} 10. e4 {[%clk 0:02:58]}  Nxc3 {[%clk 0:02:53]} 11. bxc3 {[%clk 0:02:59]}  O-O {[%clk 0:02:53]} 12. O-O {[%clk 0:02:59]}  Nd7 {[%clk 0:02:51]} 13. Bf4 {[%clk 0:02:55]}  Nf6 {[%clk 0:02:50]} 14. Re1 {[%clk 0:02:47]}  Rc8 {[%clk 0:02:48]} 15. h3 {[%clk 0:02:44]}  cxd4 {[%clk 0:02:20]} 16. cxd4 {[%clk 0:02:42]}  Rc3 {[%clk 0:02:20]} 17. a4 {[%clk 0:02:07]}  Qa8 {[%clk 0:01:38]} 18. d5 {[%clk 0:01:45]}  exd5 {[%clk 0:01:25]} 19. exd5 {[%clk 0:01:15]}  Nxd5 {[%clk 0:01:25]} 20. Be5 {[%clk 0:01:00]}  Bf6 {[%clk 0:01:15]} 21. Qd2 {[%clk 0:00:25]}  Bxe5 {[%clk 0:00:57]} 22. Nxe5 {[%clk 0:00:26]}  Rc7 {[%clk 0:00:40]} 23. a5 {[%clk 0:00:20]}  bxa5 {[%clk 0:00:28]} 24. Rxa5 {[%clk 0:00:19]}  Nf6 {[%clk 0:00:23]} 25. Qf4 {[%clk 0:00:12]}  Bxg2 {[%clk 0:00:15]} 26. Ng4 {[%clk 0:00:12]}  Nxg4 {[%clk 0:00:08]} 27. hxg4 {[%clk 0:00:12]}  Rd7 {[%clk 0:00:04]} 28. Bxh7+ {[%clk 0:00:10]}  Kxh7 {[%clk 0:00:03]} 29. Qh2+ {[%clk 0:00:11]}  Kg8 {[%clk 0:00:02]} 30. Rh5 {[%clk 0:00:11]}  f6 {[%clk 0:00:02]} 31. Rh8+ {[%clk 0:00:10]}  Kf7 {[%clk 0:00:02]} 32. Qh5+ {[%clk 0:00:11]}  g6 {[%clk 0:00:01]} 33. Qh7# {[%clk 0:00:11]} 1-0


[Site "https://www.chess.com"]

[Event "Titled Tuesday Blitz August 22 Early 2023"]
[White "Gontcharov, Vladislav"]
[Black "Blanco Ronquillo, Humberto L."]
[WhiteFideId "4123492"]
[BlackFideId "3504239"]
[WhiteElo "2567"]
[BlackElo "2714"]
[Result "1-0"]
[Round "9"]
[TimeControl "180+1"]
[Date "2023.08.22"]
[WhiteClock "0:00:08"]
[BlackClock "0:00:00"]
[Board "49"]

1. d4 {[%clk 0:03:00]}  d5 {[%clk 0:02:50]} 2. c4 {[%clk 0:03:00]}  c6 {[%clk 0:02:50]} 3. Nf3 {[%clk 0:03:00]}  Nf6 {[%clk 0:02:50]} 4. e3 {[%clk 0:02:57]}  Bf5 {[%clk 0:02:50]} 5. cxd5 {[%clk 0:02:57]}  cxd5 {[%clk 0:02:49]} 6. Nc3 {[%clk 0:02:57]}  Nc6 {[%clk 0:02:49]} 7. Bb5 {[%clk 0:02:57]}  Rc8 {[%clk 0:02:35]} 8. Ne5 {[%clk 0:02:53]}  e6 {[%clk 0:02:29]} 9. g4 {[%clk 0:02:43]}  Be4 {[%clk 0:02:17]} 10. f3 {[%clk 0:02:42]}  Bg6 {[%clk 0:02:17]} 11. h4 {[%clk 0:02:42]}  h5 {[%clk 0:02:16]} 12. Bxc6+ {[%clk 0:02:36]}  bxc6 {[%clk 0:02:15]} 13. Nxg6 {[%clk 0:02:36]}  fxg6 {[%clk 0:02:16]} 14. Qc2 {[%clk 0:02:36]}  Kf7 {[%clk 0:02:15]} 15. gxh5 {[%clk 0:02:18]}  Nxh5 {[%clk 0:02:05]} 16. Qg2 {[%clk 0:02:01]}  c5 {[%clk 0:02:00]} 17. dxc5 {[%clk 0:01:45]}  Bxc5 {[%clk 0:01:58]} 18. Bd2 {[%clk 0:01:38]}  Qf6 {[%clk 0:01:28]} 19. O-O-O {[%clk 0:01:33]}  Rc6 {[%clk 0:01:28]} 20. f4 {[%clk 0:01:18]}  Rb8 {[%clk 0:01:20]} 21. Qg5 {[%clk 0:00:54]}  Qxg5 {[%clk 0:00:24]} 22. hxg5 {[%clk 0:00:54]}  Ng3 {[%clk 0:00:24]} 23. Rh3 {[%clk 0:00:52]}  Nf5 {[%clk 0:00:20]} 24. Rdh1 {[%clk 0:00:28]}  Nd6 {[%clk 0:00:18]} 25. Rh8 {[%clk 0:00:26]}  Rcc8 {[%clk 0:00:13]} 26. Rxc8 {[%clk 0:00:25]}  Rxc8 {[%clk 0:00:14]} 27. Rh3 {[%clk 0:00:22]}  Nc4 {[%clk 0:00:14]} 28. Kc2 {[%clk 0:00:18]}  Bb6 {[%clk 0:00:11]} 29. Bc1 {[%clk 0:00:17]}  Ba5 {[%clk 0:00:06]} 30. Kd3 {[%clk 0:00:17]}  Bxc3 {[%clk 0:00:06]} 31. bxc3 {[%clk 0:00:17]}  Nd6 {[%clk 0:00:07]} 32. Bd2 {[%clk 0:00:14]}  Rb8 {[%clk 0:00:07]} 33. Kc2 {[%clk 0:00:13]}  Nc4 {[%clk 0:00:05]} 34. Bc1 {[%clk 0:00:13]}  Nd6 {[%clk 0:00:05]} 35. Rh1 {[%clk 0:00:13]}  Ne4 {[%clk 0:00:04]} 36. Rh2 {[%clk 0:00:13]}  a5 {[%clk 0:00:03]} 37. Rh1 {[%clk 0:00:12]}  a4 {[%clk 0:00:04]} 38. Rh2 {[%clk 0:00:12]}  Rc8 {[%clk 0:00:04]} 39. Bd2 {[%clk 0:00:12]}  Rb8 {[%clk 0:00:04]} 40. Bc1 {[%clk 0:00:11]}  Nd6 {[%clk 0:00:05]} 41. Rh1 {[%clk 0:00:10]}  Nc4 {[%clk 0:00:05]} 42. Rh2 {[%clk 0:00:09]}  Ke7 {[%clk 0:00:05]} 43. Rh1 {[%clk 0:00:09]}  Rb7 {[%clk 0:00:03]} 44. Rh7 {[%clk 0:00:09]}  Kf7 {[%clk 0:00:03]} 45. Rh8 {[%clk 0:00:09]}  Nd6 {[%clk 0:00:03]} 46. Ra8 {[%clk 0:00:09]}  Ne4 {[%clk 0:00:00]} 47. Rxa4 {[%clk 0:00:08]} 1-0


[Site "https://www.chess.com"]

[Event "Titled Tuesday Blitz August 22 Early 2023"]
[White "Preotu, Razvan"]
[Black "Willy, Stephen"]
[WhiteFideId "2613280"]
[BlackFideId "30981468"]
[WhiteElo "2712"]
[BlackElo "2559"]
[Result "1-0"]
[Round "9"]
[TimeControl "180+1"]
[Date "2023.08.22"]
[WhiteClock "0:00:37"]
[BlackClock "0:00:34"]
[Board "50"]

1. e4 {[%clk 0:03:00]}  e6 {[%clk 0:02:48]} 2. d4 {[%clk 0:02:57]}  d5 {[%clk 0:02:48]} 3. Nc3 {[%clk 0:02:58]}  Nf6 {[%clk 0:02:46]} 4. e5 {[%clk 0:02:58]}  Nfd7 {[%clk 0:02:47]} 5. f4 {[%clk 0:02:59]}  c5 {[%clk 0:02:46]} 6. Nf3 {[%clk 0:02:59]}  Nc6 {[%clk 0:02:45]} 7. Be3 {[%clk 0:02:59]}  Qb6 {[%clk 0:02:36]} 8. Na4 {[%clk 0:02:58]}  Qa5+ {[%clk 0:02:33]} 9. c3 {[%clk 0:02:58]}  cxd4 {[%clk 0:02:31]} 10. b4 {[%clk 0:02:58]}  Nxb4 {[%clk 0:02:26]} 11. cxb4 {[%clk 0:02:57]}  Bxb4+ {[%clk 0:02:27]} 12. Bd2 {[%clk 0:02:57]}  Bxd2+ {[%clk 0:02:26]} 13. Nxd2 {[%clk 0:02:58]}  b5 {[%clk 0:02:23]} 14. Nb2 {[%clk 0:02:59]}  O-O {[%clk 0:02:15]} 15. Bd3 {[%clk 0:02:57]}  f6 {[%clk 0:02:14]} 16. O-O {[%clk 0:02:22]}  fxe5 {[%clk 0:02:01]} 17. fxe5 {[%clk 0:02:23]}  Rxf1+ {[%clk 0:02:01]} 18. Nxf1 {[%clk 0:02:21]}  Nxe5 {[%clk 0:02:01]} 19. Bxh7+ {[%clk 0:02:21]}  Kxh7 {[%clk 0:01:59]} 20. Qh5+ {[%clk 0:02:21]}  Kg8 {[%clk 0:02:00]} 21. Qe8+ {[%clk 0:02:19]}  Kh7 {[%clk 0:02:00]} 22. Qh5+ {[%clk 0:02:20]}  Kg8 {[%clk 0:01:59]} 23. Qxe5 {[%clk 0:02:20]}  Qc3 {[%clk 0:01:53]} 24. Qe2 {[%clk 0:01:38]}  e5 {[%clk 0:01:43]} 25. Qxe5 {[%clk 0:01:31]}  Qxb2 {[%clk 0:01:29]} 26. Qxd5+ {[%clk 0:01:31]}  Kh7 {[%clk 0:01:30]} 27. Qxa8 {[%clk 0:01:31]}  Qxa1 {[%clk 0:01:26]} 28. Qxc8 {[%clk 0:01:31]}  Qb1 {[%clk 0:01:21]} 29. Qc5 {[%clk 0:01:02]}  Qd3 {[%clk 0:01:06]} 30. Qxa7 {[%clk 0:00:54]}  Qe4 {[%clk 0:00:58]} 31. Qc5 {[%clk 0:00:49]}  d3 {[%clk 0:00:51]} 32. Qe3 {[%clk 0:00:43]}  Qd5 {[%clk 0:00:49]} 33. Nd2 {[%clk 0:00:40]}  Kg8 {[%clk 0:00:34]} 34. Qe8+ {[%clk 0:00:37]} 1-0


[Site "https://www.chess.com"]